{"text_format":"1","workbook":"xlsx","n_sheets":6,"sheets":["Objectif","Actuel","Consolidation","Consolidation (4)","Consolidation (3)","Consolidation (2)"],"not_rendered":{"charts":0,"images":0,"macros":1,"external_links":1,"defined_names":0,"comments":1,"pivot_tables":0},"unopened":[],"bounds":{"document_bytes":16777216,"sheet_cells":100000,"rows_first":2000,"rows_last":500,"rows_between":2000,"halvings":0,"cell_chars":16384,"cell_head_chars":4096},"cells_cut":0,"cells_raw":0,"read":"whole","date_system":"1900"}

{"sheet":"Objectif","index":0,"n_rows":21,"n_cols":5,"rows_kept":21,"cut":false,"hidden":false,"merged":[[18,2,18,13],[19,2,19,13],[20,2,20,13]]}
[]
[]
[]
[null,null,"Nom Fichier","NALO-1.xlsx"]
[null,null,"Chemin","D:\\Rapports Entiers"]
[null,null,"Les feuilles a consolider"]
[null,null,"1ere Feuille","DMR120"]
[null,null,"Derniere Feuille","DMR129"]
[null,null,"Plage de cellules a consolider","O15:Y47","R15C15:R47C25"]
[]
[]
[]
[]
[]
[]
[]
[]
[]
[null,null,"La feuille \"Consolidation\" est juste un caneva pour les feuilles Consolidation (2), Consolidation (3) etc ... "]
[null,null,"Le travail n'est pas encore termine c'est pourquoi les codes sont tres mal organises"]
[null,null,"Je n'est pas encore mis le code cité dans mon poste."]

{"sheet":"Actuel","index":1,"n_rows":139,"n_cols":15,"rows_kept":139,"cut":false,"hidden":false,"merged":[[4,0,10,0],[4,2,10,2],[4,3,10,3],[4,4,10,4]]}
["Consolidation.xlsm",3,null,null,null,null,null,null,null,null,null,null,null,"DDFR01","D:\\Flash\\Docs de Travail\\[DMR2325.xlsx]DDFR01!R13C13:R67C20"]
["D:\\SH\\",null,null,null,null,null,null,null,null,null,7,null,null,"DDFR02","D:\\Flash\\Docs de Travail\\[DMR2325.xlsx]DDFR02!R13C13:R67C20"]
["Chemin","D:\\Flash\\Docs de Travail",null,null,null,null,null,null,null,1,{"$f":"J3*$K$2+1","v":8},null,null,"DDFR03","D:\\Flash\\Docs de Travail\\[DMR2325.xlsx]DDFR03!R13C13:R67C20"]
["Nom Fichier avec extension","DMR2325.xlsx","Ne pas oubler d'ouvrir le fichier",null,null,null,null,null,null,{"$f":"J3+1","v":2},15,null,null,"DDFR04","D:\\Flash\\Docs de Travail\\[DMR2325.xlsx]DDFR04!R13C13:R67C20"]
["Liste des feuilles a consolider",{"$f":"OFFSET(INDIRECT(ADDRESS(MATCH(B6,$N$1:$N$139,0),14,4)),-1,0)","v":"DDFR80"},"Plage de cellules a consolider","O15:Y47","R15C15:R47C25",null,null,null,null,3,22,null,null,"DDFR05","D:\\Flash\\Docs de Travail\\[DMR2325.xlsx]DDFR05!R13C13:R67C20"]
[null,"DDFR81",null,null,null,null,null,null,null,4,29,null,null,"DDFR06","D:\\Flash\\Docs de Travail\\[DMR2325.xlsx]DDFR06!R13C13:R67C20"]
[null,"DDFR82",null,null,null,null,null,null,null,5,36,null,null,"DDFR07","D:\\Flash\\Docs de Travail\\[DMR2325.xlsx]DDFR07!R13C13:R67C20"]
[null,"DDFR83",null,null,null,null,null,null,null,6,43,null,null,"DDFR08","D:\\Flash\\Docs de Travail\\[DMR2325.xlsx]DDFR08!R13C13:R67C20"]
[null,"DDFR84",null,null,null,null,null,null,null,7,50,null,null,"DDFR09","D:\\Flash\\Docs de Travail\\[DMR2325.xlsx]DDFR09!R13C13:R67C20"]
[null,"DDFR85",null,null,null,null,null,null,null,8,57,null,null,"DDFR10","D:\\Flash\\Docs de Travail\\[DMR2325.xlsx]DDFR10!R13C13:R67C20"]
[null,"DDFR86",null,null,"R15C13:R49C20",null,null,null,null,9,64,null,null,"DDFR11","D:\\Flash\\Docs de Travail\\[DMR2325.xlsx]DDFR11!R13C13:R67C20"]
[{"$f":"$B$3&\"\\\"&$B$4","v":"D:\\Flash\\Docs de Travail\\DMR2325.xlsx"},null,null,null,null,null,null,null,null,10,71,null,null,"DDFR12","D:\\Flash\\Docs de Travail\\[DMR2325.xlsx]DDFR12!R13C13:R67C20"]
[{"$f":"VLOOKUP(B5,$N$1:$O$139,2,0)","v":"D:\\Flash\\Docs de Travail\\[DMR2325.xlsx]DDFR80!R13C13:R67C20"},null,null,"D:\\Flash\\Docs de Travail\\[DMR2325.xlsx]DDFR08!Produits",null,null,null,null,null,11,78,null,null,"DDFR13","D:\\Flash\\Docs de Travail\\[DMR2325.xlsx]DDFR13!R13C13:R67C20"]
["D:\\Flash\\Docs de Travail\\[DMR2325.xlsx]DDFR81!R13C13:R67C20",null,null,"D:\\Flash\\Docs de Travail\\[DMR2325.xlsx]DDFR09!Produits",null,null,null,null,null,12,85,null,null,"DDFR14","D:\\Flash\\Docs de Travail\\[DMR2325.xlsx]DDFR14!R13C13:R67C20"]
["D:\\Flash\\Docs de Travail\\[DMR2325.xlsx]DDFR82!R13C13:R67C20",null,null,"D:\\Flash\\Docs de Travail\\[DMR2325.xlsx]DDFR10!Produits",null,null,null,null,null,13,92,null,null,"DDFR15","D:\\Flash\\Docs de Travail\\[DMR2325.xlsx]DDFR15!R13C13:R67C20"]
["D:\\Flash\\Docs de Travail\\[DMR2325.xlsx]DDFR83!R13C13:R67C20",null,null,"D:\\Flash\\Docs de Travail\\[DMR2325.xlsx]DDFR11!Produits",null,null,null,null,null,14,99,null,null,"DDFR16","D:\\Flash\\Docs de Travail\\[DMR2325.xlsx]DDFR16!R13C13:R67C20"]
["D:\\Flash\\Docs de Travail\\[DMR2325.xlsx]DDFR84!R13C13:R67C20",null,null,"D:\\Flash\\Docs de Travail\\[DMR2325.xlsx]DDFR12!Produits",null,null,null,null,null,15,106,null,null,"DDFR17","D:\\Flash\\Docs de Travail\\[DMR2325.xlsx]DDFR17!R13C13:R67C20"]
["D:\\Flash\\Docs de Travail\\[DMR2325.xlsx]DDFR85!R13C13:R67C20",null,null,"D:\\Flash\\Docs de Travail\\[DMR2325.xlsx]DDFR13!Produits",null,null,null,null,null,16,113,null,null,"DDFR18","D:\\Flash\\Docs de Travail\\[DMR2325.xlsx]DDFR18!R13C13:R67C20"]
["D:\\Flash\\Docs de Travail\\[DMR2325.xlsx]DDFR86!R13C13:R67C20",null,null,"D:\\Flash\\Docs de Travail\\[DMR2325.xlsx]DDFR14!Produits",null,null,null,null,null,17,120,null,null,"DDFR19","D:\\Flash\\Docs de Travail\\[DMR2325.xlsx]DDFR19!R13C13:R67C20"]
[null,null,null,null,null,null,null,null,null,18,127,null,null,"DDFR20","D:\\Flash\\Docs de Travail\\[DMR2325.xlsx]DDFR20!R13C13:R67C20"]
[null,null,null,null,null,null,null,null,null,19,134,null,null,"DDFR21","D:\\Flash\\Docs de Travail\\[DMR2325.xlsx]DDFR21!R13C13:R67C20"]
[null,null,null,null,null,null,null,null,null,20,141,null,null,"DDFR22","D:\\Flash\\Docs de Travail\\[DMR2325.xlsx]DDFR22!R13C13:R67C20"]
[null,null,null,null,null,null,null,null,null,21,148,null,null,"DDFR23","D:\\Flash\\Docs de Travail\\[DMR2325.xlsx]DDFR23!R13C13:R67C20"]
["D:\\Flash\\Docs de Travail\\[DMR2325.xlsx]DDFR10!Produits, D:\\Flash\\Docs de Travail\\[DMR2325.xlsx]DDFR09!Produits, D:\\Flash\\Docs de Travail\\[DMR2325.xlsx]DDFR08!Produits, ",null,null,null,null,null,null,null,null,22,155,null,null,"DDFR24","D:\\Flash\\Docs de Travail\\[DMR2325.xlsx]DDFR24!R13C13:R67C20"]
[null,null,null,null,null,null,null,null,null,23,162,null,null,"DDFR25","D:\\Flash\\Docs de Travail\\[DMR2325.xlsx]DDFR25!R13C13:R67C20"]
[null,null,null,null,null,null,null,null,null,24,169,null,null,"DDFR26","D:\\Flash\\Docs de Travail\\[DMR2325.xlsx]DDFR26!R13C13:R67C20"]
[{"$f":"$B$3&\"\\[\"&$B$4&\"]\"&B5&\"!\"&$E$5","v":"D:\\Flash\\Docs de Travail\\[DMR2325.xlsx]DDFR80!R15C15:R47C25"},null,null,null,null,null,null,null,null,25,176,null,null,"DDFR27","D:\\Flash\\Docs de Travail\\[DMR2325.xlsx]DDFR27!R13C13:R67C20"]
["D:\\Flash\\Docs de Travail\\[DMR2325.xlsx]DDFR81!R15C15:R47C25",null,null,null,null,null,null,null,null,26,183,null,null,"DDFR28","D:\\Flash\\Docs de Travail\\[DMR2325.xlsx]DDFR28!R13C13:R67C20"]
["D:\\Flash\\Docs de Travail\\[DMR2325.xlsx]DDFR82!R15C15:R47C25",null,null,null,null,null,null,null,null,27,190,null,null,"DDFR29","D:\\Flash\\Docs de Travail\\[DMR2325.xlsx]DDFR29!R13C13:R67C20"]
["D:\\Flash\\Docs de Travail\\[DMR2325.xlsx]DDFR83!R15C15:R47C25",null,null,null,null,null,null,null,null,28,197,null,null,"DDFR30","D:\\Flash\\Docs de Travail\\[DMR2325.xlsx]DDFR30!R13C13:R67C20"]
["D:\\Flash\\Docs de Travail\\[DMR2325.xlsx]DDFR84!R15C15:R47C25",null,null,null,null,null,null,null,null,29,204,null,null,"DDFR31","D:\\Flash\\Docs de Travail\\[DMR2325.xlsx]DDFR31!R13C13:R67C20"]
["D:\\Flash\\Docs de Travail\\[DMR2325.xlsx]DDFR85!R15C15:R47C25",null,null,null,null,null,null,null,null,null,null,null,null,"DDFR32","D:\\Flash\\Docs de Travail\\[DMR2325.xlsx]DDFR32!R13C13:R67C20"]
["D:\\Flash\\Docs de Travail\\[DMR2325.xlsx]DDFR86!R15C15:R47C25",null,null,null,null,null,null,null,null,null,null,null,null,"DDFR33","D:\\Flash\\Docs de Travail\\[DMR2325.xlsx]DDFR33!R13C13:R67C20"]
[null,null,null,null,null,null,null,null,null,null,null,null,null,"DDFR34","D:\\Flash\\Docs de Travail\\[DMR2325.xlsx]DDFR34!R13C13:R67C20"]
["D:\\Flash\\Docs de Travail\\[DMR2325.xlsx]DDFR01!R13C13:R67C20,D:\\Flash\\Docs de Travail\\[DMR2325.xlsx]DDFR02!R13C13:R67C20,D:\\Flash\\Docs de Travail\\[DMR2325.xlsx]DDFR03!R13C13:R67C20,D:\\Flash\\Docs de Travail\\[DMR2325.xlsx]DDFR04!R13C13:R67C20,D:\\Flash\\Docs de Travail\\[DMR2325.xlsx]DDFR05!R13C13:R67C20,D:\\Flash\\Docs de Travail\\[DMR2325.xlsx]DDFR06!R13C13:R67C20,D:\\Flash\\Docs de Travail\\[DMR2325.xlsx]DDFR07!R13C13:R67C20",null,null,null,null,null,null,null,null,null,null,null,null,"DDFR35","D:\\Flash\\Docs de Travail\\[DMR2325.xlsx]DDFR35!R13C13:R67C20"]
[null,null,null,null,null,null,null,null,null,null,null,null,null,"DDFR36","D:\\Flash\\Docs de Travail\\[DMR2325.xlsx]DDFR36!R13C13:R67C20"]
[null,null,null,null,null,null,null,null,null,null,null,null,null,"DDFR37","D:\\Flash\\Docs de Travail\\[DMR2325.xlsx]DDFR37!R13C13:R67C20"]
[null,null,null,null,null,null,null,null,null,null,null,null,null,"DDFR38","D:\\Flash\\Docs de Travail\\[DMR2325.xlsx]DDFR38!R13C13:R67C20"]
[null,null,null,null,null,null,null,null,null,null,null,null,null,"DDFR39","D:\\Flash\\Docs de Travail\\[DMR2325.xlsx]DDFR39!R13C13:R67C20"]
[null,null,null,null,null,null,null,null,null,null,null,null,null,"DDFR40","D:\\Flash\\Docs de Travail\\[DMR2325.xlsx]DDFR40!R13C13:R67C20"]
[null,null,null,null,null,null,null,null,null,null,null,null,null,"DDFR41","D:\\Flash\\Docs de Travail\\[DMR2325.xlsx]DDFR41!R13C13:R67C20"]
[null,450000,450000,null,null,null,null,null,null,null,null,null,null,"DDFR42","D:\\Flash\\Docs de Travail\\[DMR2325.xlsx]DDFR42!R13C13:R67C20"]
[null,{"$f":"B42/1500","v":300},{"$f":"C42/4000","v":112.5},null,null,null,null,null,null,null,null,null,null,"DDFR43","D:\\Flash\\Docs de Travail\\[DMR2325.xlsx]DDFR43!R13C13:R67C20"]
[null,{"$f":"B43/12","v":25},{"$f":"C43/12","v":9.375},null,null,null,null,null,null,null,null,null,null,"DDFR44","D:\\Flash\\Docs de Travail\\[DMR2325.xlsx]DDFR44!R13C13:R67C20"]
[null,null,null,null,null,null,null,null,null,null,null,null,null,"DDFR45","D:\\Flash\\Docs de Travail\\[DMR2325.xlsx]DDFR45!R13C13:R67C20"]
[null,null,null,null,null,null,null,null,null,null,null,null,null,"DDFR46","D:\\Flash\\Docs de Travail\\[DMR2325.xlsx]DDFR46!R13C13:R67C20"]
[null,null,null,null,null,null,null,null,null,null,null,null,null,"DDFR47","D:\\Flash\\Docs de Travail\\[DMR2325.xlsx]DDFR47!R13C13:R67C20"]
[null,null,null,null,null,null,null,null,null,null,null,null,null,"DDFR48","D:\\Flash\\Docs de Travail\\[DMR2325.xlsx]DDFR48!R13C13:R67C20"]
[null,null,null,null,null,null,null,null,null,null,null,null,null,"DDFR49","D:\\Flash\\Docs de Travail\\[DMR2325.xlsx]DDFR49!R13C13:R67C20"]
[null,null,null,null,null,null,null,null,null,null,null,null,null,"DDFR50","D:\\Flash\\Docs de Travail\\[DMR2325.xlsx]DDFR50!R13C13:R67C20"]
[null,null,null,null,null,null,null,null,null,null,null,null,null,"DDFR51","D:\\Flash\\Docs de Travail\\[DMR2325.xlsx]DDFR51!R13C13:R67C20"]
[null,null,null,null,null,null,null,null,null,null,null,null,null,"DDFR52","D:\\Flash\\Docs de Travail\\[DMR2325.xlsx]DDFR52!R13C13:R67C20"]
[null,null,null,null,null,null,null,null,null,null,null,null,null,"DDFR53","D:\\Flash\\Docs de Travail\\[DMR2325.xlsx]DDFR53!R13C13:R67C20"]
[null,null,null,null,null,null,null,null,null,null,null,null,null,"DDFR54","D:\\Flash\\Docs de Travail\\[DMR2325.xlsx]DDFR54!R13C13:R67C20"]
[null,null,null,null,null,null,null,null,null,null,null,null,null,"DDFR55","D:\\Flash\\Docs de Travail\\[DMR2325.xlsx]DDFR55!R13C13:R67C20"]
[null,null,null,null,null,null,null,null,null,null,null,null,null,"DDFR56","D:\\Flash\\Docs de Travail\\[DMR2325.xlsx]DDFR56!R13C13:R67C20"]
[null,null,null,null,null,null,null,null,null,null,null,null,null,"DDFR57","D:\\Flash\\Docs de Travail\\[DMR2325.xlsx]DDFR57!R13C13:R67C20"]
[null,null,null,null,null,null,null,null,null,null,null,null,null,"DDFR58","D:\\Flash\\Docs de Travail\\[DMR2325.xlsx]DDFR58!R13C13:R67C20"]
[null,null,null,null,null,null,null,null,null,null,null,null,null,"DDFR59","D:\\Flash\\Docs de Travail\\[DMR2325.xlsx]DDFR59!R13C13:R67C20"]
[null,null,null,null,null,null,null,null,null,null,null,null,null,"DDFR60","D:\\Flash\\Docs de Travail\\[DMR2325.xlsx]DDFR60!R13C13:R67C20"]
[null,null,null,null,null,null,null,null,null,null,null,null,null,"DDFR61","D:\\Flash\\Docs de Travail\\[DMR2325.xlsx]DDFR61!R13C13:R67C20"]
[null,null,null,null,null,null,null,null,null,null,null,null,null,"DDFR62","D:\\Flash\\Docs de Travail\\[DMR2325.xlsx]DDFR62!R13C13:R67C20"]
[null,null,null,null,null,null,null,null,null,null,null,null,null,"DDFR63","D:\\Flash\\Docs de Travail\\[DMR2325.xlsx]DDFR63!R13C13:R67C20"]
[null,null,null,null,null,null,null,null,null,null,null,null,null,"DDFR64","D:\\Flash\\Docs de Travail\\[DMR2325.xlsx]DDFR64!R13C13:R67C20"]
[null,null,null,null,null,null,null,null,null,null,null,null,null,"DDFR65","D:\\Flash\\Docs de Travail\\[DMR2325.xlsx]DDFR65!R13C13:R67C20"]
[null,null,null,null,null,null,null,null,null,null,null,null,null,"DDFR66","D:\\Flash\\Docs de Travail\\[DMR2325.xlsx]DDFR66!R13C13:R67C20"]
[null,null,null,null,null,null,null,null,null,null,null,null,null,"DDFR67","D:\\Flash\\Docs de Travail\\[DMR2325.xlsx]DDFR67!R13C13:R67C20"]
[null,null,null,null,null,null,null,null,null,null,null,null,null,"DDFR68","D:\\Flash\\Docs de Travail\\[DMR2325.xlsx]DDFR68!R13C13:R67C20"]
[null,null,null,null,null,null,null,null,null,null,null,null,null,"DDFR69","D:\\Flash\\Docs de Travail\\[DMR2325.xlsx]DDFR69!R13C13:R67C20"]
[null,null,null,null,null,null,null,null,null,null,null,null,null,"DDFR70","D:\\Flash\\Docs de Travail\\[DMR2325.xlsx]DDFR70!R13C13:R67C20"]
[null,null,null,null,null,null,null,null,null,null,null,null,null,"DDFR71","D:\\Flash\\Docs de Travail\\[DMR2325.xlsx]DDFR71!R13C13:R67C20"]
[null,null,null,null,null,null,null,null,null,null,null,null,null,"DDFR72","D:\\Flash\\Docs de Travail\\[DMR2325.xlsx]DDFR72!R13C13:R67C20"]
[null,null,null,null,null,null,null,null,null,null,null,null,null,"DDFR73","D:\\Flash\\Docs de Travail\\[DMR2325.xlsx]DDFR73!R13C13:R67C20"]
[null,null,null,null,null,null,null,null,null,null,null,null,null,"DDFR74","D:\\Flash\\Docs de Travail\\[DMR2325.xlsx]DDFR74!R13C13:R67C20"]
[null,null,null,null,null,null,null,null,null,null,null,null,null,"DDFR75","D:\\Flash\\Docs de Travail\\[DMR2325.xlsx]DDFR75!R13C13:R67C20"]
[null,null,null,null,null,null,null,null,null,null,null,null,null,"DDFR76","D:\\Flash\\Docs de Travail\\[DMR2325.xlsx]DDFR76!R13C13:R67C20"]
[null,null,null,null,null,null,null,null,null,null,null,null,null,"DDFR77","D:\\Flash\\Docs de Travail\\[DMR2325.xlsx]DDFR77!R13C13:R67C20"]
[null,null,null,null,null,null,null,null,null,null,null,null,null,"DDFR78","D:\\Flash\\Docs de Travail\\[DMR2325.xlsx]DDFR78!R13C13:R67C20"]
[null,null,null,null,null,null,null,null,null,null,null,null,null,"DDFR79","D:\\Flash\\Docs de Travail\\[DMR2325.xlsx]DDFR79!R13C13:R67C20"]
[null,null,null,null,null,null,null,null,null,null,null,null,null,"DDFR80","D:\\Flash\\Docs de Travail\\[DMR2325.xlsx]DDFR80!R13C13:R67C20"]
[null,null,null,null,null,null,null,null,null,null,null,null,null,"DDFR81","D:\\Flash\\Docs de Travail\\[DMR2325.xlsx]DDFR81!R13C13:R67C20"]
[null,null,null,null,null,null,null,null,null,null,null,null,null,"DDFR82","D:\\Flash\\Docs de Travail\\[DMR2325.xlsx]DDFR82!R13C13:R67C20"]
[null,null,null,null,null,null,null,null,null,null,null,null,null,"DDFR83","D:\\Flash\\Docs de Travail\\[DMR2325.xlsx]DDFR83!R13C13:R67C20"]
[null,null,null,null,null,null,null,null,null,null,null,null,null,"DDFR84","D:\\Flash\\Docs de Travail\\[DMR2325.xlsx]DDFR84!R13C13:R67C20"]
[null,null,null,null,null,null,null,null,null,null,null,null,null,"DDFR85","D:\\Flash\\Docs de Travail\\[DMR2325.xlsx]DDFR85!R13C13:R67C20"]
[null,null,null,null,null,null,null,null,null,null,null,null,null,"DDFR86","D:\\Flash\\Docs de Travail\\[DMR2325.xlsx]DDFR86!R13C13:R67C20"]
[null,null,null,null,null,null,null,null,null,null,null,null,null,"DDFR87","D:\\Flash\\Docs de Travail\\[DMR2325.xlsx]DDFR87!R13C13:R67C20"]
[null,null,null,null,null,null,null,null,null,null,null,null,null,"DDFR88","D:\\Flash\\Docs de Travail\\[DMR2325.xlsx]DDFR88!R13C13:R67C20"]
[null,null,null,null,null,null,null,null,null,null,null,null,null,"DDFR89","D:\\Flash\\Docs de Travail\\[DMR2325.xlsx]DDFR89!R13C13:R67C20"]
[null,null,null,null,null,null,null,null,null,null,null,null,null,"DDFR90","D:\\Flash\\Docs de Travail\\[DMR2325.xlsx]DDFR90!R13C13:R67C20"]
[null,null,null,null,null,null,null,null,null,null,null,null,null,"DDFR91","D:\\Flash\\Docs de Travail\\[DMR2325.xlsx]DDFR91!R13C13:R67C20"]
[null,null,null,null,null,null,null,null,null,null,null,null,null,"DDFR92","D:\\Flash\\Docs de Travail\\[DMR2325.xlsx]DDFR92!R13C13:R67C20"]
[null,null,null,null,null,null,null,null,null,null,null,null,null,"DDFR93","D:\\Flash\\Docs de Travail\\[DMR2325.xlsx]DDFR93!R13C13:R67C20"]
[null,null,null,null,null,null,null,null,null,null,null,null,null,"DDFR94","D:\\Flash\\Docs de Travail\\[DMR2325.xlsx]DDFR94!R13C13:R67C20"]
[null,null,null,null,null,null,null,null,null,null,null,null,null,"DDFR95","D:\\Flash\\Docs de Travail\\[DMR2325.xlsx]DDFR95!R13C13:R67C20"]
[null,null,null,null,null,null,null,null,null,null,null,null,null,"DDFR96","D:\\Flash\\Docs de Travail\\[DMR2325.xlsx]DDFR96!R13C13:R67C20"]
[null,null,null,null,null,null,null,null,null,null,null,null,null,"DDFR97","D:\\Flash\\Docs de Travail\\[DMR2325.xlsx]DDFR97!R13C13:R67C20"]
[null,null,null,null,null,null,null,null,null,null,null,null,null,"DDFR98","D:\\Flash\\Docs de Travail\\[DMR2325.xlsx]DDFR98!R13C13:R67C20"]
[null,null,null,null,null,null,null,null,null,null,null,null,null,"DDFR99","D:\\Flash\\Docs de Travail\\[DMR2325.xlsx]DDFR99!R13C13:R67C20"]
[null,null,null,null,null,null,null,null,null,null,null,null,null,"DDFR100","D:\\Flash\\Docs de Travail\\[DMR2325.xlsx]DDFR100!R13C13:R67C20"]
[null,null,null,null,null,null,null,null,null,null,null,null,null,"DDFR101","D:\\Flash\\Docs de Travail\\[DMR2325.xlsx]DDFR101!R13C13:R67C20"]
[null,null,null,null,null,null,null,null,null,null,null,null,null,"DDFR102","D:\\Flash\\Docs de Travail\\[DMR2325.xlsx]DDFR102!R13C13:R67C20"]
[null,null,null,null,null,null,null,null,null,null,null,null,null,"DDFR103","D:\\Flash\\Docs de Travail\\[DMR2325.xlsx]DDFR103!R13C13:R67C20"]
[null,null,null,null,null,null,null,null,null,null,null,null,null,"DDFR104","D:\\Flash\\Docs de Travail\\[DMR2325.xlsx]DDFR104!R13C13:R67C20"]
[null,null,null,null,null,null,null,null,null,null,null,null,null,"DDFR105","D:\\Flash\\Docs de Travail\\[DMR2325.xlsx]DDFR105!R13C13:R67C20"]
[null,null,null,null,null,null,null,null,null,null,null,null,null,"DDFR106","D:\\Flash\\Docs de Travail\\[DMR2325.xlsx]DDFR106!R13C13:R67C20"]
[null,null,null,null,null,null,null,null,null,null,null,null,null,"DDFR107","D:\\Flash\\Docs de Travail\\[DMR2325.xlsx]DDFR107!R13C13:R67C20"]
[null,null,null,null,null,null,null,null,null,null,null,null,null,"DDFR108","D:\\Flash\\Docs de Travail\\[DMR2325.xlsx]DDFR108!R13C13:R67C20"]
[null,null,null,null,null,null,null,null,null,null,null,null,null,"DDFR109","D:\\Flash\\Docs de Travail\\[DMR2325.xlsx]DDFR109!R13C13:R67C20"]
[null,null,null,null,null,null,null,null,null,null,null,null,null,"DDFR110","D:\\Flash\\Docs de Travail\\[DMR2325.xlsx]DDFR110!R13C13:R67C20"]
[null,null,null,null,null,null,null,null,null,null,null,null,null,"DDFR111","D:\\Flash\\Docs de Travail\\[DMR2325.xlsx]DDFR111!R13C13:R67C20"]
[null,null,null,null,null,null,null,null,null,null,null,null,null,"DDFR112","D:\\Flash\\Docs de Travail\\[DMR2325.xlsx]DDFR112!R13C13:R67C20"]
[null,null,null,null,null,null,null,null,null,null,null,null,null,"DDFR113","D:\\Flash\\Docs de Travail\\[DMR2325.xlsx]DDFR113!R13C13:R67C20"]
[null,null,null,null,null,null,null,null,null,null,null,null,null,"DDFR114","D:\\Flash\\Docs de Travail\\[DMR2325.xlsx]DDFR114!R13C13:R67C20"]
[null,null,null,null,null,null,null,null,null,null,null,null,null,"DDFR115","D:\\Flash\\Docs de Travail\\[DMR2325.xlsx]DDFR115!R13C13:R67C20"]
[null,null,null,null,null,null,null,null,null,null,null,null,null,"DDFR116","D:\\Flash\\Docs de Travail\\[DMR2325.xlsx]DDFR116!R13C13:R67C20"]
[null,null,null,null,null,null,null,null,null,null,null,null,null,"DDFR117","D:\\Flash\\Docs de Travail\\[DMR2325.xlsx]DDFR117!R13C13:R67C20"]
[null,null,null,null,null,null,null,null,null,null,null,null,null,"DDFR118","D:\\Flash\\Docs de Travail\\[DMR2325.xlsx]DDFR118!R13C13:R67C20"]
[null,null,null,null,null,null,null,null,null,null,null,null,null,"DDFR119","D:\\Flash\\Docs de Travail\\[DMR2325.xlsx]DDFR119!R13C13:R67C20"]
[null,null,null,null,null,null,null,null,null,null,null,null,null,"DDFR120","D:\\Flash\\Docs de Travail\\[DMR2325.xlsx]DDFR120!R13C13:R67C20"]
[null,null,null,null,null,null,null,null,null,null,null,null,null,"DDFR121","D:\\Flash\\Docs de Travail\\[DMR2325.xlsx]DDFR121!R13C13:R67C20"]
[null,null,null,null,null,null,null,null,null,null,null,null,null,"DDFR122","D:\\Flash\\Docs de Travail\\[DMR2325.xlsx]DDFR122!R13C13:R67C20"]
[null,null,null,null,null,null,null,null,null,null,null,null,null,"DDFR123","D:\\Flash\\Docs de Travail\\[DMR2325.xlsx]DDFR123!R13C13:R67C20"]
[null,null,null,null,null,null,null,null,null,null,null,null,null,"DDFR124","D:\\Flash\\Docs de Travail\\[DMR2325.xlsx]DDFR124!R13C13:R67C20"]
[null,null,null,null,null,null,null,null,null,null,null,null,null,"DDFR125","D:\\Flash\\Docs de Travail\\[DMR2325.xlsx]DDFR125!R13C13:R67C20"]
[null,null,null,null,null,null,null,null,null,null,null,null,null,"DDFR126","D:\\Flash\\Docs de Travail\\[DMR2325.xlsx]DDFR126!R13C13:R67C20"]
[null,null,null,null,null,null,null,null,null,null,null,null,null,"DDFR127","D:\\Flash\\Docs de Travail\\[DMR2325.xlsx]DDFR127!R13C13:R67C20"]
[null,null,null,null,null,null,null,null,null,null,null,null,null,"DDFR128","D:\\Flash\\Docs de Travail\\[DMR2325.xlsx]DDFR128!R13C13:R67C20"]
[null,null,null,null,null,null,null,null,null,null,null,null,null,"DDFR129","D:\\Flash\\Docs de Travail\\[DMR2325.xlsx]DDFR129!R13C13:R67C20"]
[null,null,null,null,null,null,null,null,null,null,null,null,null,"DDFR130","D:\\Flash\\Docs de Travail\\[DMR2325.xlsx]DDFR130!R13C13:R67C20"]
[null,null,null,null,null,null,null,null,null,null,null,null,null,"DDFR131","D:\\Flash\\Docs de Travail\\[DMR2325.xlsx]DDFR131!R13C13:R67C20"]
[null,null,null,null,null,null,null,null,null,null,null,null,null,"DDFR132","D:\\Flash\\Docs de Travail\\[DMR2325.xlsx]DDFR132!R13C13:R67C20"]
[null,null,null,null,null,null,null,null,null,null,null,null,null,"DDFR133","D:\\Flash\\Docs de Travail\\[DMR2325.xlsx]DDFR133!R13C13:R67C20"]
[null,null,null,null,null,null,null,null,null,null,null,null,null,"DDFR134","D:\\Flash\\Docs de Travail\\[DMR2325.xlsx]DDFR134!R13C13:R67C20"]
[null,null,null,null,null,null,null,null,null,null,null,null,null,"DDFR135","D:\\Flash\\Docs de Travail\\[DMR2325.xlsx]DDFR135!R13C13:R67C20"]
[null,null,null,null,null,null,null,null,null,null,null,null,null,"DDFR136","D:\\Flash\\Docs de Travail\\[DMR2325.xlsx]DDFR136!R13C13:R67C20"]
[null,null,null,null,null,null,null,null,null,null,null,null,null,"DDFR137","D:\\Flash\\Docs de Travail\\[DMR2325.xlsx]DDFR137!R13C13:R67C20"]
[null,null,null,null,null,null,null,null,null,null,null,null,null,"DDFR138","D:\\Flash\\Docs de Travail\\[DMR2325.xlsx]DDFR138!R13C13:R67C20"]
[null,null,null,null,null,null,null,null,null,null,null,null,null,"DDFR139","D:\\Flash\\Docs de Travail\\[DMR2325.xlsx]DDFR139!R13C13:R67C20"]

{"sheet":"Consolidation","index":2,"n_rows":0,"n_cols":0,"rows_kept":0,"cut":false,"hidden":false,"merged":[]}

{"sheet":"Consolidation (4)","index":3,"n_rows":31,"n_cols":8,"rows_kept":31,"cut":false,"hidden":false,"merged":[]}
["DDFR01  To  DDFR07","Pack","Start","Recvd","Return","Used","End","Cost"]
["Produit1",null,715.25,40,null,null,755.25,0]
["Produit2",null,388.5,null,null,null,388.5,0]
["Produit3",null,12.600000000000001,null,null,null,12.600000000000001,0]
["Produit4",null,2.5199999999999996,null,null,null,2.5199999999999996,0]
["Produit5",null,8.19,null,null,null,8.19,0]
["Produit6",null,10.079999999999998,null,null,null,10.079999999999998,0]
["Produit7",null,19.175000000000001,3,null,1.25,20.924999999999997,99000]
["Produit8",null,23.29,2.8250000000000002,null,null,26.114999999999998,0]
["Produit9",null,34.65,null,null,null,34.65,0]
["Produit10",null,20.475000000000001,null,null,null,20.475000000000001,0]
["Produit11",null,29.5,null,null,2.5,27,189000]
["Produit12",null,112,null,null,null,112,0]
["Produit13",null,7.875,null,null,null,7.875,0]
["Produit14 ",null,9.5459999999999994,null,null,null,9.5459999999999994,0]
["Produit15",null,66.150000000000006,null,null,null,66.150000000000006,0]
["Produit16",null,6.5,null,null,1.5,5,118800]
["Produit17",null,20.875,4.2,null,0.8,24.274999999999999,103680]
["Produit18",null,7,null,null,null,7,0]
["Produit19",null,12.919999999999998,1.36,null,null,14.279999999999998,0]
["Produit20",null,28.35,null,null,null,28.35,0]
["Produit21",null,26.75,0.375,null,null,27.125,0]
["Produit22",null,22.049999999999997,0.1,null,null,22.149999999999995,0]
["Produit23",null,11.6,null,null,0.5,11.1,158400]
["Produit24",null,30.25,3,null,null,33.25,0]
["Produit25",null,107.5,116.25,null,63.75,160,1009800]
["Produit26",null,11.88,1.98,null,null,13.860000000000001,0]
["Produit27",null,85.982399999999998,14.330399999999999,null,null,100.3128,0]
["Produit28",null,193.79999999999998,55.599999999999994,null,null,249.39999999999998,0]
["Produit29",null,19,29,29,null,19,0]
["Daily Products Cost ",null,null,1678680]

{"sheet":"Consolidation (3)","index":4,"n_rows":31,"n_cols":8,"rows_kept":31,"cut":false,"hidden":false,"merged":[]}
["DDFR01  To  DDFR07","Pack","Start","Recvd","Return","Used","End","Cost"]
["Produit1",null,715.25,40,null,null,755.25,0]
["Produit2",null,388.5,null,null,null,388.5,0]
["Produit3",null,12.600000000000001,null,null,null,12.600000000000001,0]
["Produit4",null,2.5199999999999996,null,null,null,2.5199999999999996,0]
["Produit5",null,8.19,null,null,null,8.19,0]
["Produit6",null,10.079999999999998,null,null,null,10.079999999999998,0]
["Produit7",null,19.175000000000001,3,null,1.25,20.924999999999997,99000]
["Produit8",null,23.29,2.8250000000000002,null,null,26.114999999999998,0]
["Produit9",null,34.65,null,null,null,34.65,0]
["Produit10",null,20.475000000000001,null,null,null,20.475000000000001,0]
["Produit11",null,29.5,null,null,2.5,27,189000]
["Produit12",null,112,null,null,null,112,0]
["Produit13",null,7.875,null,null,null,7.875,0]
["Produit14 ",null,9.5459999999999994,null,null,null,9.5459999999999994,0]
["Produit15",null,66.150000000000006,null,null,null,66.150000000000006,0]
["Produit16",null,6.5,null,null,1.5,5,118800]
["Produit17",null,20.875,4.2,null,0.8,24.274999999999999,103680]
["Produit18",null,7,null,null,null,7,0]
["Produit19",null,12.919999999999998,1.36,null,null,14.279999999999998,0]
["Produit20",null,28.35,null,null,null,28.35,0]
["Produit21",null,26.75,0.375,null,null,27.125,0]
["Produit22",null,22.049999999999997,0.1,null,null,22.149999999999995,0]
["Produit23",null,11.6,null,null,0.5,11.1,158400]
["Produit24",null,30.25,3,null,null,33.25,0]
["Produit25",null,107.5,116.25,null,63.75,160,1009800]
["Produit26",null,11.88,1.98,null,null,13.860000000000001,0]
["Produit27",null,85.982399999999998,14.330399999999999,null,null,100.3128,0]
["Produit28",null,193.79999999999998,55.599999999999994,null,null,249.39999999999998,0]
["Produit29",null,19,29,29,null,19,0]
["Daily Products Cost ",null,null,1678680]

{"sheet":"Consolidation (2)","index":5,"n_rows":29,"n_cols":8,"rows_kept":29,"cut":false,"hidden":false,"merged":[]}
["DDFR133  To  DDFR139","Pack","Start","Recvd","Return","Used","End","Cost"]
["Produit2",null,280,null,null,null,280,0]
["Produit3",null,231,null,null,null,231,0]
["Produit4",null,5.0400000000000036,null,null,null,5.0400000000000036,0]
["Produit5",null,0,null,null,null,0,0]
["Produit6",null,1.2600000000000002,null,null,null,1.2600000000000002,0]
["Produit7",null,7.5600000000000014,null,null,null,7.5600000000000014,0]
["Produit8",null,3.3249999999999966,null,null,null,3.3249999999999966,0]
["Produit9",null,1.2250000000000001,null,null,null,1.2250000000000001,0]
["Produit10",null,8.2249999999999943,null,null,null,8.2249999999999943,0]
["Produit11",null,10.395,null,null,null,10.395,0]
["Produit12",null,8.75,null,null,null,8.75,0]
["Produit13",null,140,null,null,null,140,0]
["Produit14 ",null,10.5,null,null,null,10.5,0]
["Produit15",null,1.6,null,null,0.8,0.8,155520]
["Produit16",null,66.150000000000006,null,null,null,66.150000000000006,0]
["Produit17",null,7,null,null,null,7,0]
["Produit18",null,7,null,null,null,7,0]
["Produit19",null,9.24,null,null,null,9.24,0]
["Produit20",null,3.569999999999999,null,null,null,3.569999999999999,0]
["Produit21",null,1,0.25,null,0.1,1.1499999999999999,12960]
["Produit22"]
["Produit23"]
["Produit24"]
["Produit25"]
["Produit26"]
["Produit27"]
["Produit28"]
["Produit29",null,0,null,null,null,0,0]